bitfinex/quotes_BTCUSD_20250326
["timestamp","ask_amount","ask_price","bid_price","bid_amount"]
[1742982599695,0.25195282,88088.0,88087.0,0.0773696]
[1742982600654,0.31406236,88088.0,88087.0,0.0773696]
[1742982600903,0.24552771,88088.0,88087.0,0.0773696]
[1742982601115,0.24552771,88088.0,88087.0,0.0001696]
[1742982601313,0.2434541,88088.0,88087.0,0.0001696]
[1742982603313,0.2454541,88088.0,88087.0,0.0001696]
[1742982604238,0.26323159,88088.0,88087.0,0.0001696]
[1742982604671,0.25851369,88088.0,88087.0,0.0001696]
[1742982605735,0.29038148,88088.0,88087.0,0.0001696]
[1742982606232,0.2407362,88088.0,88087.0,0.0001696]
[1742982608741,0.2585137,88088.0,88087.0,0.0001696]
[1742982612094,0.5585137,88088.0,88087.0,0.0001696]
[1742982612422,0.6070137,88088.0,88087.0,0.0001696]
[1742982612623,0.5892362,88088.0,88087.0,0.0001696]
[1742982612826,0.63584748,88088.0,88087.0,0.0001696]
[1742982613188,0.63384748,88088.0,88087.0,0.0001696]
[1742982613612,0.63584748,88088.0,88087.0,0.0001696]
[1742982616773,0.5892362,88088.0,88087.0,0.0001696]
[1742982616974,0.60701452,88088.0,88087.0,0.0001696]
[1742982619242,0.55851452,88088.0,88087.0,0.0001696]
[1742982622531,0.5407362,88088.0,88087.0,0.0001696]
[1742982625899,0.55851407,88088.0,88087.0,0.0001696]
[1742982627300,0.5407362,88088.0,88087.0,0.0001696]
[1742982627512,0.5661959,88088.0,88087.0,0.0001696]
[1742982629130,0.5407362,88088.0,88087.0,0.0001696]
[1742982629335,0.55851393,88088.0,88087.0,0.0001696]
[1742982630584,0.5407362,88088.0,88087.0,0.0001696]
[1742982631380,0.55162457,88088.0,88087.0,0.0001696]
[1742982636719,0.56940261,88088.0,88087.0,0.0001696]
[1742982636920,0.68366025,88088.0,88087.0,0.0001696]
[1742982638533,0.73016025,88088.0,88087.0,0.0001696]
[1742982640636,0.71238221,88088.0,88087.0,0.0001696]
[1742982646194,0.59812457,88088.0,88087.0,0.0001696]
[1742982648204,0.6159029,88088.0,88087.0,0.0001696]
[1742982648432,0.59812457,88088.0,88087.0,0.0001696]
[1742982656839,0.61590296,88088.0,88087.0,0.0001696]
[1742982661077,0.56940296,88088.0,88087.0,0.0001696]
[1742982661521,0.03100596,88088.0,88087.0,0.3203696]
[1742982661730,0.03100596,88088.0,88087.0,0.3090176]
[1742982661900,0.01322757,88088.0,88087.0,0.3090176]
[1742982662890,0.01322757,88088.0,88087.0,0.31965669]
[1742982663090,0.01322757,88088.0,88087.0,0.33100869]
[1742982663295,0.01122757,88088.0,88087.0,0.33100869]
[1742982663680,0.01222757,88088.0,88087.0,0.33100869]
[1742982663883,0.01222757,88088.0,88087.0,0.31965669]
[1742982664083,0.01122757,88088.0,88087.0,0.31965669]
[1742982664282,0.01122757,88088.0,88087.0,0.33100869]
[1742982665132,0.01222757,88088.0,88087.0,0.33100869]
[1742982666578,0.0139059,88088.0,88087.0,0.33100869]
[1742982666975,0.0316828,88088.0,88087.0,0.33100869]
[1742982667720,0.0316828,88088.0,88087.0,0.09260869]
[1742982668217,0.0316828,88088.0,88087.0,0.31965669]
[1742982669695,0.0316828,88088.0,88087.0,0.33100869]
[1742982670486,0.0316828,88088.0,88087.0,0.3203696]
[1742982671389,0.0191161,88088.0,88087.0,0.3203696]
[1742982672630,0.0013392,88088.0,88087.0,0.3203696]
[1742982674117,0.0013392,88088.0,88087.0,0.33099396]
[1742982675098,0.0139102,88088.0,88087.0,0.33099396]
[1742982675310,0.0013392,88088.0,88087.0,0.09259396]
[1742982675508,0.0139102,88088.0,88087.0,0.09259396]
[1742982675688,0.0139102,88088.0,88087.0,0.31964196]
[1742982676551,0.2409552,88088.0,88087.0,0.09259396]
[1742982676996,0.0139102,88088.0,88087.0,0.09259396]
[1742982677410,0.2409552,88088.0,88087.0,0.01079396]
[1742982678945,0.2409552,88088.0,88087.0,0.0001696]
[1742982679151,0.25873186,88088.0,88087.0,0.0001696]
[1742982680160,0.35839205,88088.0,88087.0,0.0001696]
[1742982680374,0.36974405,88088.0,88087.0,0.0001696]
[1742982680782,0.35196739,88088.0,88087.0,0.0001696]
[1742982682196,0.2523072,88088.0,88087.0,0.0001696]
[1742982682708,0.2513072,88088.0,88087.0,0.0001696]
[1742982683132,0.2533072,88088.0,88087.0,0.0001696]
[1742982683510,0.2513072,88088.0,88087.0,0.0001696]
[1742982683842,0.2533072,88088.0,88087.0,0.0001696]
[1742982684024,0.36756484,88088.0,88087.0,0.0001696]
[1742982684224,1.27602248,88088.0,88087.0,0.0001696]
[1742982684433,1.32122248,88088.0,88087.0,0.0001696]
[1742982685814,1.32222248,88088.0,88087.0,0.0001696]
[1742982686204,1.32722248,88088.0,88087.0,0.0001696]
[1742982687654,1.21296484,88088.0,88087.0,0.0001696]
[1742982688049,1.0161072,88088.0,88087.0,0.0001696]
[1742982688792,1.03388593,88088.0,88087.0,0.0001696]
[1742982692486,1.0161072,88088.0,88087.0,0.0001696]
[1742982697039,1.0338859,88088.0,88087.0,0.0001696]
[1742982698333,1.14070654,88088.0,88087.0,0.0001696]
[1742982700338,1.0338859,88088.0,88087.0,0.0001696]
[1742982702470,1.0161072,88088.0,88087.0,0.0001696]
[1742982705679,1.03388592,88088.0,88087.0,0.0001696]
[1742982706729,1.0161072,88088.0,88087.0,0.0001696]
[1742982709412,1.03388603,88088.0,88087.0,0.0001696]
[1742982709742,1.12120704,88088.0,88087.0,0.0001696]
[1742982710353,1.03388603,88088.0,88087.0,0.0001696]
[1742982712609,1.0161072,88088.0,88087.0,0.0001696]
[1742982719668,1.0338861,88088.0,88087.0,0.0001696]
[1742982722608,1.0161072,88088.0,88087.0,0.0001696]
[1742982726914,1.03388617,88088.0,88087.0,0.0001696]
[1742982727073,1.07441844,88088.0,88087.0,0.0001696]
[1742982727279,1.05663947,88088.0,88087.0,0.0001696]
[1742982729457,1.07441837,88088.0,88087.0,0.0001696]
[1742982730717,1.20321686,88088.0,88087.0,0.0001696]
[1742982730914,1.20321686,88088.0,88084.0,0.0001696]
[1742982730915,0.3,88085.0,88084.0,0.0001696]
[1742982731114,1.27097354,88085.0,88084.0,0.0001696]
[1742982731681,1.28198376,88085.0,88084.0,0.0001696]
[1742982732080,1.37008376,88085.0,88084.0,0.0001696]
[1742982732841,1.36508376,88085.0,88084.0,0.0001696]
[1742982733275,1.36908376,88085.0,88084.0,0.0001696]
[1742982734283,1.37408376,88085.0,88084.0,0.0001696]
[1742982735799,1.38524152,88085.0,88084.0,0.0001696]
[1742982737031,1.40302146,88085.0,88084.0,0.0001696]
[1742982737432,1.37030905,88085.0,88084.0,0.0001696]
[1742982738333,1.25605141,88085.0,88084.0,0.0001696]
[1742982738658,1.38201141,88085.0,88084.0,0.0001696]
[1742982740913,1.36423147,88085.0,88084.0,0.0001696]
[1742982746366,1.28113147,88085.0,88084.0,0.0001696]
[1742982746839,1.29891151,88085.0,88084.0,0.0001696]
[1742982747048,1.41316915,88085.0,88084.0,0.0001696]
[1742982749398,1.29891151,88085.0,88084.0,0.0001696]
[1742982749834,1.15841066,88085.0,88084.0,0.0001696]
[1742982750030,1.23917066,88085.0,88084.0,0.0001696]
[1742982750237,0.99895302,88085.0,88084.0,0.0001696]
[1742982752741,0.98117298,88085.0,88084.0,0.0001696]
[1742982752934,1.09543062,88085.0,88084.0,0.0001696]
[1742982757007,1.11321042,88085.0,88084.0,0.0001696]
[1742982757334,1.22746806,88085.0,88084.0,0.0001696]
[1742982762488,1.20968826,88085.0,88084.0,0.0001696]
[1742982764487,1.24236189,88085.0,88084.0,0.0001696]
[1742982764684,1.23935337,88085.0,88084.0,0.0001696]
[1742982766845,1.25713321,88085.0,88084.0,0.0001696]
[1742982767202,1.23935337,88085.0,88084.0,0.0001696]
[1742982769133,1.25713323,88085.0,88084.0,0.0001696]
[1742982769334,1.14287559,88085.0,88084.0,0.0001696]
[1742982772080,1.14321479,88085.0,88084.0,0.0001696]
[1742982772575,1.12543493,88085.0,88084.0,0.0001696]
[1742982775174,1.10916207,88085.0,88084.0,0.0001696]
[1742982776875,1.12694173,88085.0,88084.0,0.0001696]
[1742982781663,1.24119937,88085.0,88084.0,0.0001696]
[1742982782470,1.12694173,88085.0,88084.0,0.0001696]
[1742982786471,1.10916207,88085.0,88084.0,0.0001696]
[1742982789037,1.12694142,88085.0,88084.0,0.0001696]
[1742982798662,1.10916207,88085.0,88084.0,0.0001696]
[1742982801278,1.12694135,88085.0,88084.0,0.0001696]
[1742982803114,1.10916207,88085.0,88084.0,0.0001696]
[1742982805585,1.22341971,88085.0,88084.0,0.0001696]
[1742982806019,1.12694142,88085.0,88084.0,0.0001696]
[1742982808406,1.15963332,88085.0,88084.0,0.0001696]
[1742982808736,1.04537568,88085.0,88084.0,0.0001696]
[1742982816499,1.02759633,88085.0,88084.0,0.0001696]
[1742982819206,1.04537559,88085.0,88084.0,0.0001696]
[1742982826220,1.02759633,88085.0,88084.0,0.0001696]
[1742982828834,1.04537558,88085.0,88084.0,0.0001696]
[1742982830956,0.538429,88076.0,88075.0,0.0557392]
[1742982831279,0.54983438,88076.0,88075.0,0.0557392]
[1742982831679,0.56761384,88076.0,88075.0,0.0557392]
[1742982832191,0.56761384,88076.0,88075.0,0.05581861]
[1742982833195,0.57461384,88076.0,88075.0,0.05581861]
[1742982834389,0.57461384,88076.0,88075.0,7.941e-05]
[1742982836159,0.55683438,88076.0,88075.0,7.941e-05]
[1742982838852,0.57461399,88076.0,88075.0,7.941e-05]
[1742982841482,0.68887163,88076.0,88075.0,7.941e-05]
[1742982843387,0.68887163,88076.0,88075.0,0.00024901]
[1742982846378,0.67109202,88076.0,88075.0,0.00024901]
[1742982848899,0.68887285,88076.0,88075.0,0.00024901]
[1742982856336,0.67109202,88076.0,88075.0,0.00024901]
[1742982858976,0.68887299,88076.0,88075.0,0.00024901]
[1742982860188,0.92973063,88076.0,88075.0,0.00024901]
[1742982860595,0.85193063,88076.0,88075.0,0.00024901]
[1742982866274,0.83414966,88076.0,88075.0,0.00024901]
[1742982868861,0.85193121,88076.0,88075.0,0.00024901]
[1742982876316,0.83414966,88076.0,88075.0,0.00024901]
[1742982878379,0.71989202,88076.0,88075.0,0.00024901]
[1742982878826,0.73767365,88076.0,88075.0,0.00024901]
[1742982882894,0.81507365,88076.0,88075.0,0.00024901]
[1742982883723,0.81007365,88076.0,88075.0,0.00024901]
[1742982884200,0.81307365,88076.0,88075.0,0.00024901]
[1742982884376,0.93133129,88076.0,88075.0,0.00024901]
[1742982885385,0.92633129,88076.0,88075.0,0.00024901]
[1742982885681,0.93133129,88076.0,88075.0,0.00024901]
[1742982886465,0.91354966,88076.0,88075.0,0.00024901]
[1742982889130,0.93133218,88076.0,88075.0,0.00024901]
[1742982896427,0.91354966,88076.0,88075.0,0.00024901]
[1742982897236,0.83614966,88076.0,88075.0,0.00024901]
[1742982897944,0.96210966,88076.0,88075.0,0.00024901]
[1742982899221,0.97989228,88076.0,88075.0,0.00024901]
[1742982900186,1.39149228,88076.0,88075.0,0.00024901]
[1742982906123,1.40603313,88076.0,88075.0,1e-08]
[1742982906326,0.011355,88065.0,88061.0,0.0018305]
[1742982906530,0.011355,88065.0,88061.0,0.00190997]
[1742982906531,0.538467,88062.0,88061.0,0.00190997]
[1742982906735,0.65272464,88062.0,88061.0,0.00190997]
[1742982906939,0.69639496,88062.0,88061.0,0.00190997]
[1742982907379,1.12253581,88062.0,88061.0,0.00190997]
[1742982908104,1.12653581,88062.0,88061.0,0.00190997]
[1742982908315,1.14938313,88062.0,88061.0,0.00190997]
[1742982908534,0.53851,88046.0,88045.0,0.06790997]
[1742982908767,0.53851,88046.0,88045.0,0.06802694]
[1742982908987,0.5494908,88046.0,88045.0,0.06802694]
[1742982909233,0.56068874,88046.0,88045.0,0.06802694]
[1742982909449,0.67494638,88046.0,88045.0,0.00011697]
[1742982909862,0.56068874,88046.0,88045.0,0.00011697]
[1742982910261,0.57847431,88046.0,88045.0,0.00011697]
[1742982910792,0.58247431,88046.0,88045.0,0.00011697]
[1742982911663,0.58247431,88046.0,88045.0,0.08311697]
[1742982913654,0.59109567,88046.0,88045.0,0.08311697]
[1742982914979,0.5733101,88046.0,88045.0,0.08311697]
[1742982916417,0.5733101,88046.0,88045.0,0.08328657]
[1742982917425,0.64503692,88046.0,88045.0,0.08328657]
[1742982917602,0.66282289,88046.0,88045.0,0.08328657]
[1742982920261,0.66282289,88046.0,88045.0,0.00028657]
[1742982926491,0.64503692,88046.0,88045.0,0.00028657]
[1742982927546,0.5733101,88046.0,88045.0,0.00028657]
[1742982927890,0.5736495,88046.0,88045.0,0.00028657]
[1742982929209,0.59143598,88046.0,88045.0,0.00028657]
[1742982931902,0.58281462,88046.0,88045.0,0.00028657]
[1742982932727,0.58281462,88046.0,88045.0,0.07578657]
[1742982935057,0.04430462,88046.0,88045.0,0.07578657]
[1742982935784,0.02651814,88046.0,88045.0,0.07578657]
[1742982935947,0.25367114,88046.0,88045.0,0.05578657]
[1742982936167,0.26202814,88046.0,88045.0,0.05578657]
[1742982936570,0.26402814,88046.0,88045.0,0.05578657]
[1742982936985,0.26202814,88046.0,88045.0,0.05578657]
[1742982937238,0.36091785,88046.0,88045.0,0.05578657]
[1742982937456,0.238524,88041.0,88040.0,0.0001696]
[1742982937700,0.238524,88041.0,88040.0,0.00058006]
[1742982937908,0.24944861,88041.0,88040.0,0.00058006]
[1742982938097,0.24944861,88041.0,88040.0,0.01123708]
[1742982938601,0.32547734,88041.0,88040.0,0.01123708]
[1742982939287,0.24944861,88041.0,88040.0,0.01123708]
[1742982939881,0.26723476,88041.0,88040.0,0.01123708]
[1742982941252,0.26723476,88041.0,88040.0,0.00058006]
[1742982942492,0.24944861,88041.0,88040.0,0.00058006]
[1742982945734,0.26723483,88041.0,88040.0,0.00058006]
[1742982953860,0.26723483,88041.0,88040.0,0.01123689]
[1742982956688,0.26723483,88041.0,88040.0,0.00623689]
[1742982956889,0.227172,88039.0,88036.0,0.227179]
[1742982957252,0.23809435,88039.0,88036.0,0.227179]
[1742982957495,0.23809435,88039.0,88035.0,0.2273506]
[1742982958716,0.23809435,88039.0,88036.0,0.227179]
[1742982959355,0.25588064,88039.0,88036.0,0.227179]
[1742982960073,0.25588064,88039.0,88035.0,0.2273506]
[1742982960373,0.25588064,88039.0,88036.0,0.227178]
[1742982960797,0.25588064,88039.0,88035.0,0.2273506]
[1742982960960,0.25588064,88039.0,88036.0,0.227179]
[1742982961180,0.25588064,88039.0,88035.0,0.2273506]
[1742982961556,0.29212677,88039.0,88035.0,0.2273506]
[1742982961736,0.29212677,88039.0,88035.0,0.0001696]
[1742982962442,0.29212677,88039.0,88036.0,0.227179]
[1742982962646,0.29212677,88039.0,88035.0,0.0001696]
[1742982963823,0.26723864,88039.0,88035.0,0.0001696]
[1742982964814,0.26723864,88039.0,88035.0,0.2273496]
[1742982965585,0.26723864,88039.0,88036.0,0.227179]
[1742982965784,0.26723864,88039.0,88035.0,0.2273496]
[1742982965993,0.26723864,88039.0,88038.0,0.0224845]
[1742982966924,0.24945235,88039.0,88038.0,0.0224845]
[1742982969255,0.24945235,88039.0,88038.0,0.03314618]
[1742982969597,0.26723865,88039.0,88038.0,0.03314618]
[1742982973267,0.24945235,88039.0,88038.0,0.03314618]
[1742982975393,0.35820673,88039.0,88038.0,0.03314618]
[1742982976191,0.37599324,88039.0,88038.0,0.03314618]
[1742982977245,0.26723886,88039.0,88038.0,0.03314618]
[1742982978024,0.26723886,88039.0,88038.0,0.0224845]
[1742982979326,0.26723886,88039.0,88038.0,0.0001697]
[1742982983932,0.24945235,88039.0,88038.0,0.0001697]
[1742982987609,0.26723891,88039.0,88038.0,0.0001697]
[1742982989200,0.33689718,88039.0,88038.0,0.0001697]
[1742982990365,0.26723891,88039.0,88038.0,0.0001697]
[1742982995467,0.26723891,88039.0,88038.0,0.01083193]
[1742982996412,0.24945235,88039.0,88038.0,0.01083193]
[1742982998992,0.26723895,88039.0,88038.0,0.01083193]
[1742983006449,0.24945235,88039.0,88038.0,0.01083193]
[1742983007011,0.01092235,88039.0,88038.0,0.44122157]
[1742983007412,0.0003394,88040.0,88039.0,0.23853]
[1742983007638,0.0003394,88040.0,88039.0,0.35278764]
[1742983008707,0.00939962,88040.0,88039.0,0.36344987]
[1742983009025,0.02718518,88040.0,88039.0,0.36344987]
[1742983009973,0.02718518,88040.0,88039.0,0.47805187]
[1742983010420,0.02718518,88040.0,88039.0,0.25087987]
[1742983010622,0.02718518,88040.0,88039.0,0.47805187]
[1742983011945,0.00939962,88040.0,88039.0,0.47805187]
[1742983012917,0.00939962,88040.0,88039.0,0.25087987]
[1742983013380,0.00939962,88040.0,88039.0,0.47805187]
[1742983014822,0.00939962,88040.0,88039.0,0.13662223]
[1742983014823,0.23656862,88040.0,88039.0,0.13662223]
[1742983015029,0.25435457,88040.0,88039.0,0.01066223]
[1742983016025,0.26571257,88040.0,88039.0,0.01066223]
[1742983020145,0.23853,88039.0,88038.0,0.0001697]
[1742983020534,0.24759144,88039.0,88038.0,0.0001697]
[1742983029632,0.26537808,88039.0,88038.0,0.0001697]
[1742983034464,0.24759144,88039.0,88038.0,0.0001697]
[1742983035467,0.3509166,88039.0,88038.0,0.0001697]
[1742983035761,0.24759144,88039.0,88038.0,0.0001697]
[1742983037152,0.26537809,88039.0,88038.0,0.0001697]
[1742983041495,0.26537809,88039.0,88038.0,0.0108287]
[1742983043599,0.02684809,88039.0,88038.0,0.0108287]
[1742983043803,0.25402009,88039.0,88038.0,0.0108287]
[1742983044008,0.02684809,88039.0,88038.0,0.0108287]
[1742983045753,0.02684809,88039.0,88038.0,0.2380027]
[1742983046593,0.00906144,88039.0,88038.0,0.2380027]
[1742983048876,0.00906144,88039.0,88038.0,0.2493607]
[1742983049076,0.02684757,88039.0,88038.0,0.2493607]
[1742983052325,0.02684757,88039.0,88038.0,0.0108287]
[1742983052700,0.02684757,88039.0,88038.0,0.2380027]
[1742983053051,0.02684757,88039.0,88038.0,0.0108287]
[1742983054007,0.02684757,88039.0,88038.0,0.2380027]
[1742983054208,0.25401957,88039.0,88038.0,0.0108287]
[1742983056355,0.23623344,88039.0,88038.0,0.0108287]
[1742983057849,0.00906144,88039.0,88038.0,0.0108287]
[1742983058031,0.00906144,88039.0,88038.0,0.2380027]
[1742983058798,0.0268475,88039.0,88038.0,0.2380027]
[1742983059531,0.00906144,88039.0,88038.0,0.2380027]
[1742983060213,0.00906144,88039.0,88038.0,0.0108287]
[1742983060399,0.23623344,88039.0,88038.0,0.0108287]
[1742983061353,0.00906144,88039.0,88038.0,0.0108287]
[1742983061823,0.23623344,88039.0,88038.0,0.0108287]
[1742983062738,0.02684764,88039.0,88038.0,0.0108287]
[1742983063091,0.25401964,88039.0,88038.0,0.0108287]
[1742983063817,0.02684764,88039.0,88038.0,0.2380027]
[1742983064552,0.0177862,88039.0,88038.0,0.2380027]
[1742983064972,0.02682447,88039.0,88038.0,0.0108287]
[1742983065178,0.02682447,88039.0,88038.0,0.2380027]
[1742983065478,0.02682447,88039.0,88038.0,0.0108287]
[1742983065714,0.00903827,88039.0,88038.0,0.0108287]
[1742983066294,0.23621027,88039.0,88038.0,0.0108287]
[1742983066449,0.00903827,88039.0,88038.0,0.0108287]
[1742983066651,0.00903827,88039.0,88038.0,0.2380027]
[1742983067296,0.23621027,88039.0,88038.0,0.0108287]
[1742983067456,0.0003394,88040.0,88038.0,0.2380027]
[1742983067651,0.00903362,88039.0,88038.0,0.2380027]
[1742983069258,0.02682003,88039.0,88038.0,0.2380027]
[1742983069914,0.02682003,88039.0,88038.0,0.0108287]
[1742983070239,0.25399203,88039.0,88038.0,0.0108287]
[1742983071437,0.02682003,88039.0,88038.0,0.2380027]
[1742983075999,0.00903362,88039.0,88038.0,0.2380027]
[1742983078215,0.00818082,88039.0,88038.0,0.2380027]
[1742983078618,0.00818082,88039.0,88038.0,0.0108287]
[1742983078836,0.23535282,88039.0,88038.0,0.0108287]
[1742983079054,0.00818082,88039.0,88038.0,0.0108287]
[1742983079215,0.00818082,88039.0,88038.0,0.2380027]
[1742983079646,0.0003394,88040.0,88039.0,0.227172]
[1742983080020,0.00923232,88040.0,88039.0,0.227172]
[1742983080183,0.02701856,88040.0,88039.0,0.227172]
[1742983080389,0.01812564,88040.0,88039.0,0.227172]
[1742983080730,0.02701713,88040.0,88039.0,0.227172]
[1742983080950,0.02701713,88040.0,88039.0,0.23853]
[1742983081406,0.01812564,88040.0,88039.0,0.249189]
[1742983084246,0.01812564,88040.0,88039.0,0.2493586]
[1742983085450,0.01812564,88040.0,88039.0,0.44471624]
[1742983085912,0.0003394,88040.0,88039.0,0.44471624]
[1742983088111,0.0003394,88040.0,88039.0,0.44571624]
[1742983089375,0.0003394,88040.0,88039.0,0.44471624]
[1742983089702,0.0003394,88040.0,88039.0,0.44571624]
[1742983089902,0.01812272,88040.0,88039.0,0.44571624]
[1742983090107,0.0169046,88040.0,88039.0,0.44571624]
[1742983092742,0.00041104,88041.0,88040.0,0.238527]
[1742983092902,0.00041104,88041.0,88040.0,0.35278464]
[1742983093627,0.00041104,88041.0,88040.0,0.36344364]
[1742983094021,0.00041104,88041.0,88040.0,0.36444364]
[1742983096707,0.00075024,88041.0,88040.0,0.36444364]
[1742983098663,0.00075024,88041.0,88040.0,0.46984364]
[1742983099101,0.01853305,88041.0,88040.0,0.46984364]
[1742983099862,0.01853305,88041.0,88040.0,0.57182733]
[1742983102600,0.00075024,88041.0,88040.0,0.57182733]
[1742983103410,0.00075024,88041.0,88040.0,0.46984364]
[1742983105096,0.00039761,88041.0,88040.0,0.46984364]
[1742983106901,0.01818005,88041.0,88040.0,0.46984364]
[1742983108583,0.01818005,88041.0,88040.0,0.47001324]
[1742983110164,0.01818005,88041.0,88040.0,0.45935424]
[1742983110610,0.01818005,88041.0,88040.0,0.46998424]
[1742983112553,0.00039761,88041.0,88040.0,0.46998424]
[1742983114184,0.00039761,88041.0,88040.0,1.05958424]
[1742983116830,0.0003394,88045.0,88044.0,0.238516]
[1742983117002,0.0003394,88045.0,88044.0,0.35283446]
[1742983118472,0.0003394,88045.0,88044.0,0.36346446]
[1742983118871,0.0003394,88045.0,88044.0,0.36446446]
[1742983119100,0.0003394,88045.0,88044.0,0.95406446]
[1742983120303,0.01812175,88045.0,88044.0,0.98955709]
[1742983120740,0.01812175,88045.0,88044.0,0.97892709]
[1742983122922,0.0003394,88045.0,88044.0,0.97892709]
[1742983130240,0.01812191,88045.0,88044.0,0.97892709]
[1742983132158,0.01812191,88045.0,88044.0,0.98957618]
[1742983132402,0.05724004,88062.0,88061.0,0.23847]
[1742983132551,0.05724004,88062.0,88061.0,0.35272764]
[1742983133438,0.0458,88062.0,88061.0,0.35272764]
[1742983134472,0.0468,88062.0,88061.0,0.35272764]
[1742983134648,0.0468,88062.0,88061.0,0.36337673]
[1742983137915,0.0468,88062.0,88061.0,0.38583898]
[1742983138115,0.05425304,88062.0,88061.0,0.38583898]
[1742983138382,0.0468,88062.0,88061.0,0.38583898]
[1742983140094,0.06458186,88062.0,88061.0,0.38583898]
[1742983140295,0.0720349,88062.0,88061.0,0.38583898]
[1742983142805,0.06458186,88062.0,88061.0,0.38583898]
[1742983145323,0.06492106,88062.0,88061.0,0.38583898]
[1742983145721,0.0471392,88062.0,88061.0,0.38583898]
[1742983147699,0.0471392,88062.0,88061.0,0.48807757]
[1742983149226,0.0471392,88062.0,88061.0,0.38583898]
[1742983150018,0.0649209,88062.0,88061.0,0.38583898]
[1742983151104,0.0649209,88062.0,88061.0,0.51171898]
[1742983152554,0.0471392,88062.0,88061.0,0.51171898]
[1742983157279,0.0013392,88062.0,88061.0,0.63381898]
[1742983157675,0.0013392,88062.0,88061.0,0.66929701]
[1742983158077,0.0003392,88062.0,88061.0,0.66929701]
[1742983158201,0.0003392,88062.0,88061.0,0.67029701]
[1742983158407,0.0003392,88062.0,88061.0,0.63481898]
[1742983158626,0.01811879,88062.0,88061.0,0.63481898]
[1742983160304,0.01811879,88062.0,88061.0,0.63381898]
[1742983160703,0.01811879,88062.0,88061.0,0.63481898]
[1742983167563,0.01811879,88062.0,88061.0,0.58941898]
[1742983167950,0.0003392,88062.0,88061.0,0.58941898]
[1742983172455,0.01811838,88062.0,88061.0,0.58941898]
[1742983184504,0.01811838,88062.0,88061.0,0.58937898]
[1742983184933,0.01811838,88062.0,88061.0,0.51267898]
[1742983185999,0.0003392,88062.0,88061.0,0.51267898]
[1742983188844,0.01811825,88062.0,88061.0,0.51267898]
[1742983189510,0.01811825,88062.0,88061.0,0.54811778]
[1742983192475,0.0003392,88062.0,88061.0,0.54811778]
[1742983193337,0.0764,88082.0,88081.0,0.238416]
[1742983193537,0.0764,88082.0,88081.0,0.47851364]
[1742983194798,0.0764411,88082.0,88081.0,0.47851364]
[1742983195335,0.0764411,88082.0,88081.0,0.48916273]
[1742983195594,0.09421958,88082.0,88081.0,0.48916273]
[1742983195875,0.09521958,88082.0,88081.0,0.48916273]
[1742983196278,0.09521958,88082.0,88081.0,0.51043881]
[1742983196711,0.09521958,88082.0,88081.0,1.09987881]
[1742983200022,0.10153178,88082.0,88081.0,1.09987881]
[1742983201973,0.0837533,88082.0,88081.0,1.09987881]
[1742983206525,0.0073533,88082.0,88081.0,1.09987881]
[1742983207531,0.0073533,88082.0,88081.0,0.86146281]
[1742983208482,0.02513146,88082.0,88081.0,0.86146281]
[1742983212303,0.02513146,88082.0,88081.0,0.96343792]
[1742983212818,0.0073533,88082.0,88081.0,0.96343792]
[1742983213621,0.0073533,88082.0,88081.0,1.04903792]
[1742983216529,0.0073533,88082.0,88081.0,0.80894028]
[1742983216738,0.0844533,88082.0,88081.0,0.80894028]
[1742983217892,0.0781411,88082.0,88081.0,0.80894028]
[1742983219662,0.0010411,88082.0,88081.0,0.92319792]
[1742983220016,0.0013803,88082.0,88081.0,0.92319792]
[1742983221267,0.0003803,88082.0,88081.0,0.82122281]
[1742983221459,0.0013803,88082.0,88081.0,0.82122281]
[1742983221822,0.0003803,88082.0,88081.0,0.82122281]
[1742983223017,0.01815818,88082.0,88081.0,0.82122281]
[1742983225665,0.01815818,88082.0,88081.0,0.82222281]
[1742983225879,0.0003803,88082.0,88081.0,0.82222281]
[1742983231586,0.01815734,88082.0,88081.0,0.82222281]
[1742983232644,0.0003803,88082.0,88081.0,0.82222281]
[1742983233468,0.0003803,88082.0,88081.0,0.94802281]
[1742983236505,0.0003803,88082.0,88081.0,1.17508581]
[1742983237393,0.0003803,88082.0,88081.0,1.18643881]
[1742983238856,0.01815701,88082.0,88081.0,1.06063881]
[1742983239146,0.01815701,88082.0,88081.0,1.18643881]
[1742983242554,0.0003803,88082.0,88081.0,1.18643881]
[1742983242760,0.0003803,88082.0,88081.0,1.06063881]
[1742983243273,0.0003803,88082.0,88081.0,1.18643881]
[1742983244466,0.0003803,88082.0,88081.0,1.06063881]
[1742983244671,0.0003803,88082.0,88081.0,1.18643881]
[1742983246556,0.0003803,88082.0,88081.0,1.06063881]
[1742983246772,0.0003803,88082.0,88081.0,1.18643881]
[1742983248972,0.01815718,88082.0,88081.0,1.18643881]
[1742983252657,0.0003803,88082.0,88081.0,1.18643881]
[1742983258427,0.0003803,88082.0,88081.0,1.30330245]
[1742983258627,0.0003803,88082.0,88081.0,1.30230245]
[1742983258854,0.0003803,88082.0,88081.0,1.29165336]
[1742983259056,0.0003803,88082.0,88081.0,1.33985336]
[1742983260378,0.0003803,88082.0,88081.0,1.35439421]
[1742983260546,6.7e-07,88086.0,88083.0,0.011352]
[1742983260751,8.7e-07,88088.0,88086.0,0.55205]
[1742983260957,8.7e-07,88088.0,88087.0,0.80890948]
[1742983261167,8.7e-07,88088.0,88087.0,0.82833821]
[1742983261366,3.9e-07,88088.0,88087.0,0.82833821]
[1742983261573,0.01113296,88123.0,88087.0,0.82833821]
[1742983261774,0.01113296,88123.0,88101.0,0.238362]
[1742983261936,0.01113296,88123.0,88101.0,0.56041964]
[1742983262138,0.0003394,88124.0,88101.0,0.60701964]
[1742983262348,6e-07,88103.0,88102.0,0.563359]
[1742983262551,6e-07,88103.0,88102.0,0.80922609]
[1742983262763,6e-07,88103.0,88102.0,0.82082862]
[1742983263789,6e-07,88103.0,88102.0,0.87576213]
[1742983265093,6e-07,88103.0,88102.0,0.88130913]
[1742983265562,6e-07,88103.0,88102.0,0.88030913]
[1742983265858,0.0010006,88103.0,88102.0,0.88030913]
[1742983266555,0.0020006,88103.0,88102.0,0.84594053]
[1742983266764,0.0020006,88103.0,88102.0,1.25374053]
[1742983268322,0.01976939,88103.0,88102.0,1.25374053]
[1742983269523,0.01976939,88103.0,88102.0,1.37950053]
[1742983271048,0.01976939,88103.0,88102.0,1.36889278]
[1742983272589,0.0020006,88103.0,88102.0,1.36889278]
[1742983275598,0.01976948,88103.0,88102.0,1.36889278]
[1742983276478,0.0020006,88103.0,88102.0,1.36889278]
[1742983276908,0.0020006,88103.0,88102.0,1.95805278]
[1742983278621,0.0020006,88103.0,88102.0,1.95350578]
[1742983278825,0.0020006,88103.0,88102.0,1.82774578]
[1742983279022,0.0020006,88103.0,88102.0,1.87192578]
[1742983279269,0.0020006,88103.0,88102.0,1.73150493]
[1742983279464,0.0020006,88103.0,88102.0,1.85738493]
[1742983279671,0.01977012,88103.0,88102.0,1.85738493]
[1742983281811,0.01977012,88103.0,88102.0,1.95877994]
[1742983282291,0.01977012,88103.0,88102.0,1.95911894]
[1742983282495,0.0020006,88103.0,88102.0,1.95911894]
[1742983283798,0.0020006,88103.0,88102.0,1.83323894]
[1742983284005,0.0020006,88103.0,88102.0,1.95915894]
[1742983286722,0.01977018,88103.0,88102.0,2.05579979]